bitfinex/quotes_SOLUSD_20260306
["timestamp","ask_amount","ask_price","bid_price","bid_amount"]
[1772799907271,11.49324344,87.008,86.973,0.71772084]
[1772799908066,12.3748023,87.008,86.973,0.71772084]
[1772799908249,0.88155886,87.007,86.976,0.71775918]
[1772799909957,12.37501908,87.006,86.978,0.71778294]
[1772799910158,0.88155886,87.005,86.978,0.71778294]
[1772799912068,0.88155886,87.005,86.98,0.71690863]
[1772799912480,12.37528328,87.004,86.98,0.71690863]
[1772799913183,0.88155886,87.003,86.98,0.71690863]
[1772799913557,0.88155886,87.003,86.979,11.49702801]
[1772799914060,11.49372442,87.004,86.968,0.28432314]
[1772799914061,0.88155886,87.001,86.968,0.28432314]
[1772799914381,0.88155886,87.001,86.956,11.500069]
[1772799915681,0.88155886,86.999,86.956,11.500069]
[1772799916759,0.88155886,86.997,86.956,11.500069]
[1772799917177,0.88155886,86.997,86.957,0.71473036]
[1772799918388,0.88155886,86.997,86.959,0.71432223]
[1772799918558,0.88155886,87.003,86.96,0.14216157]
[1772799918763,0.88155886,87.003,86.964,0.71432223]
[1772799918979,0.88155886,87.001,86.964,0.71432223]
[1772799919866,0.88155886,87.001,86.963,0.28432314]
[1772799921771,0.88155886,86.999,86.964,11.49901108]
[1772799921982,0.88155886,86.999,86.965,0.99700525]
[1772799922283,0.88155886,86.999,86.966,0.71268211]
[1772799923969,0.88155886,86.997,86.966,0.71268211]
[1772799925284,0.88155886,86.997,86.968,0.71147034]
[1772799925888,3.38123797,87.03,86.968,0.71147034]
[1772799925889,0.88155886,87.009,86.972,0.71147034]
[1772799926475,12.37475488,87.008,86.975,0.71108231]
[1772799927288,0.88155886,87.008,86.977,0.71070005]
[1772799927595,0.88155886,87.024,86.983,0.71070005]
[1772799928084,0.88155886,87.023,86.983,0.71070005]
[1772799928473,0.88155886,87.021,86.983,11.49646796]
[1772799929070,0.88155886,87.019,86.952,0.7099431]
[1772799929272,0.88155886,86.999,86.951,11.50073029]
[1772799930380,0.88155886,86.989,86.931,0.70957488]
[1772799930579,0.88155886,86.979,86.931,0.70957488]
[1772799930886,0.88155886,86.979,86.931,12.21295112]
[1772799931294,0.88155886,86.979,86.931,0.70957488]
[1772799931493,0.88155886,86.969,86.93,0.2]
[1772799932592,0.90624824,86.967,86.93,0.2]
[1772799934587,0.90624824,86.958,86.917,51.7]
[1772799934967,0.90624824,86.958,86.918,11.50509675]
[1772799935173,0.90624824,86.958,86.919,0.70742664]
[1772799936698,3.97815716,86.987,86.923,0.70707825]
[1772799936699,0.90624824,86.956,86.923,0.70707825]
[1772799936995,11.49941092,86.961,86.923,0.70707825]
[1772799937172,12.40565916,86.961,86.923,0.70707825]
[1772799937373,0.90624824,86.96,86.923,0.70707825]
[1772799938301,0.90624824,86.958,86.925,0.99070945]
[1772799938765,0.90624824,86.958,86.926,0.70638631]
[1772799942094,0.90624824,86.956,86.927,11.50390557]
[1772799943999,11.50020125,86.955,86.928,0.70445962]
[1772799944378,0.90624824,86.954,86.927,11.50390557]
[1772799947418,0.90624824,86.952,86.927,11.50390557]
[1772799951802,0.90624824,86.95,86.927,11.50390557]
[1772799956812,0.85282886,86.948,86.922,12.20530402]
[1772799957513,0.85282886,86.948,86.923,0.7004854]
[1772799959816,0.85282886,86.948,86.916,0.69996042]
[1772799960315,11.50125938,86.947,86.916,0.69996042]
[1772799960507,0.85282886,86.946,86.916,0.69996042]
[1772799962090,0.85282886,86.946,86.918,0.69896554]
[1772799962292,0.82518425,86.968,86.92,0.69896554]
[1772799962606,11.4949135,86.995,86.923,0.99745966]
[1772799963412,11.4949135,86.995,86.947,0.14216157]
[1772799963637,11.4949135,86.995,86.922,1.15045673]
[1772799963638,11.4949135,86.995,86.951,0.14216157]
[1772799963816,11.4949135,86.995,86.924,0.85529809]
[1772799964007,40.23497223,86.989,86.932,0.85529809]
[1772799964493,0.82518425,86.988,86.932,0.85529809]
[1772799964697,0.82518425,86.979,86.932,0.85529809]
[1772799966105,0.82518425,86.977,86.935,0.85529809]
[1772799968216,0.82518425,86.975,86.937,0.85529809]
[1772799969419,0.82518425,86.982,86.94,0.14216157]
[1772799969624,0.82518425,86.982,86.943,0.85529809]
[1772799971302,0.82518425,86.98,86.946,0.85529809]
[1772799973023,0.82518425,86.98,86.948,0.85529809]
[1772799973212,0.82518425,86.991,86.948,0.85529809]
[1772799973410,0.82518425,86.989,86.95,1.13962123]
[1772799973614,0.82518425,86.989,86.953,0.85529809]
[1772799977022,0.82518425,86.989,86.956,0.85529809]
[1772799977626,62.2,86.999,86.956,0.85529809]
[1772799977627,0.82518425,86.987,86.956,0.85529809]
[1772799979420,0.82518425,86.987,86.958,0.85529809]
[1772799982042,0.82518425,86.987,86.959,11.49967225]
[1772799982342,0.82518425,86.986,86.959,11.49967225]
[1772799983355,0.82518425,86.986,86.948,28.75262059]
[1772799983519,0.82518425,86.985,86.936,0.85529809]
[1772799983837,0.82518425,86.985,86.875,46.04309273]
[1772799983838,0.82518425,86.981,86.941,0.85529809]
[1772799984243,0.82518425,86.981,86.943,0.85529809]
[1772799986017,0.82518425,86.981,86.946,0.85529809]
[1772799986222,0.82518425,86.979,86.946,0.85529809]
[1772799986417,0.82518425,86.979,86.944,40.25579682]
[1772799987543,0.82518425,86.979,86.944,11.50165623]
[1772799988748,0.82518425,86.977,86.941,0.85529809]
[1772799989636,62.2,86.984,86.941,0.85529809]
[1772799989637,0.82518425,86.983,86.943,0.85529809]
[1772799989939,0.82518425,86.983,86.942,0.14216157]
[1772799989940,0.82518425,86.982,86.949,0.85529809]
[1772799990837,0.82518425,86.982,86.951,0.85529809]
[1772799992124,0.83297788,87.006,86.953,0.81920903]
[1772799992938,0.83297788,87.004,86.956,0.81920903]
[1772799994843,0.83297788,87.002,86.958,0.81920903]
[1772799997349,0.83297788,86.989,86.943,0.81920903]
[1772799997840,0.83297788,86.989,86.94,0.28432314]
[1772799997841,0.83297788,86.989,86.95,0.14216157]
[1772799998025,0.83297788,86.989,86.94,0.28432314]
[1772799998026,0.83297788,86.989,86.953,0.81920903]
[1772800001338,0.83297788,86.987,86.942,11.50192082]
[1772800001545,0.83297788,86.985,86.943,0.81920903]
[1772800001722,0.83297788,86.985,86.944,0.9613706]
[1772800001923,0.83297788,86.985,86.946,0.81920903]
[1772800002727,0.83297788,86.985,86.948,0.81920903]
[1772800003050,0.83297788,86.985,86.952,0.81920903]
[1772800003363,0.83297788,86.994,86.955,0.81920903]
[1772800003641,0.83297788,86.992,86.955,0.81920903]
[1772800006628,28.73384766,87.006,86.957,0.81920903]
[1772800006629,0.83297788,86.99,86.957,0.81920903]
[1772800008156,62.2,87.07,86.962,0.14216157]
[1772800008326,4.82477569,87.066,86.968,0.14216157]
[1772800008635,28.72025976,87.047,86.982,0.14216157]
[1772800008834,3.38562973,87.03,86.983,0.81920903]
[1772800010048,0.83297788,87.029,86.983,0.81920903]
[1772800010950,3.38562973,87.03,86.984,0.81920903]
[1772800010951,0.83297788,87.027,86.984,0.81920903]
[1772800012846,0.83297788,87.025,86.986,0.81920903]
[1772800014762,0.80390009,87.023,86.988,0.85831466]
[1772800016058,11.49108291,87.024,86.991,0.14216157]
[1772800016255,0.80390009,87.023,86.975,0.85831466]
[1772800016581,0.80390009,87.009,86.927,1.33999873]
[1772800016741,3.38259341,86.94,86.908,0.85831466]
[1772800016938,3.38259341,86.94,86.901,0.4609499]
[1772800016939,0.80390009,86.939,86.911,0.85831466]
[1772800017247,0.80390009,86.961,86.911,0.85831466]
[1772800017450,0.80390009,86.958,86.911,0.85831466]
[1772800017648,0.80390009,86.958,86.913,0.85831466]
[1772800018160,0.80390009,86.949,86.906,0.85831466]
[1772800018857,0.80390009,86.939,86.902,0.46094459]
[1772800019534,0.80390009,86.939,86.902,1.31925925]
[1772800020131,0.80390009,86.937,86.902,1.31925925]
[1772800020348,40.25857507,86.938,86.87,28.97853888]
[1772800020349,0.80390009,86.919,86.878,0.85831466]
[1772800020532,0.80390009,86.919,86.88,1.05831466]
[1772800022052,0.79945635,86.917,86.88,0.2]
[1772800024360,0.79945635,86.915,86.88,0.2]
[1772800026653,0.79945635,86.913,86.88,1.02144009]
[1772800027051,28.75667171,86.937,86.881,0.96360166]
[1772800027254,11.50271464,86.936,86.882,0.82144009]
[1772800027559,11.50271464,86.936,86.893,0.82144009]
[1772800027760,0.79945635,86.941,86.897,0.82144009]
[1772800027934,11.50200212,86.942,86.903,0.82144009]
[1772800029053,28.75281918,86.948,86.905,0.82144009]
[1772800029272,3.38259341,86.93,86.885,11.50941203]
[1772800029442,0.79945635,86.929,86.892,0.82144009]
[1772800029642,0.79945635,86.939,86.892,0.82144009]
[1772800029945,0.79945635,86.939,86.895,0.14216157]
[1772800030139,11.50099483,86.949,86.902,0.82144009]
[1772800030345,0.79945635,86.948,86.902,0.82144009]
[1772800031942,0.79945635,86.946,86.904,0.82144009]
[1772800033742,40.25440784,86.947,86.892,0.82144009]
[1772800033743,0.79945635,86.939,86.892,0.82144009]
[1772800034166,0.79945635,86.937,86.894,0.82144009]
[1772800035372,11.50245002,86.938,86.894,0.82144009]
[1772800035950,0.79945635,86.937,86.894,0.82144009]
[1772800036160,0.79945635,86.937,86.896,0.82144009]
[1772800036358,11.50271464,86.936,86.902,0.82144009]
[1772800039265,0.79945635,86.935,86.904,0.82144009]
[1772800040749,0.79945635,86.909,86.868,0.82144009]
[1772800040963,0.79945635,86.899,86.871,11.51132138]
[1772800041371,12.30720106,86.898,86.871,11.51132138]
[1772800041585,12.30720106,86.898,86.872,0.82144009]
[1772800043247,11.50800957,86.896,86.855,0.82144009]
[1772800043473,0.79945635,86.895,86.861,11.51257552]
[1772800044173,0.79945635,86.895,86.852,28.78428744]
[1772800044174,0.79945635,86.895,86.864,11.51216034]
[1772800044878,11.50745857,86.901,86.871,0.82144009]
[1772800045469,0.79945635,86.9,86.871,0.82144009]
[1772800045665,0.79945635,86.899,86.87,0.2]
[1772800047652,11.50655298,86.907,86.872,0.82144009]
[1772800047653,0.79945635,86.907,86.872,0.82144009]
[1772800047852,11.50720011,86.903,86.872,0.82144009]
[1772800050153,11.50720011,86.903,86.874,0.82144009]
[1772800051173,0.79945635,86.929,86.874,0.82144009]
[1772800052755,0.82800902,86.928,86.876,0.84293289]
[1772800053772,12.33191459,86.927,86.878,0.84293289]
[1772800053976,12.33191459,86.927,86.88,0.14216157]
[1772800054181,0.82800902,86.926,86.883,0.84293289]
[1772800056170,0.82800902,86.924,86.885,0.84293289]
[1772800058558,0.82800902,86.922,86.887,0.84293289]
[1772800061375,40.26552234,86.923,86.889,0.84293289]
[1772800061376,0.82800902,86.92,86.889,0.84293289]
[1772800064392,0.82800902,86.918,86.889,0.84293289]
[1772800065689,0.82800902,86.918,86.891,0.84293289]
[1772800066686,0.82800902,86.937,86.893,0.84293289]
[1772800066870,0.82800902,86.943,86.894,0.84293289]
[1772800068777,0.82800902,86.941,86.896,0.84293289]
[1772800071888,40.25672287,86.942,86.895,40.27849703]
[1772800071889,0.82800902,86.939,86.898,0.84293289]
[1772800075292,0.80993905,86.937,86.9,0.80495193]
[1772800077686,0.80993905,86.935,86.9,0.80495193]
[1772800077884,0.80993905,86.935,86.894,11.50822495]
[1772800077885,0.95210062,86.904,86.829,11.51688098]
[1772800078085,3.3878459,86.85,86.806,51.76]
[1772800078286,3.3878459,86.84,86.813,11.51893036]
[1772800079090,0.80993905,86.839,86.806,51.76]
[1772800079296,3.3878459,86.83,86.806,63.27985039]
[1772800079474,0.80993905,86.839,86.806,63.27985039]
[1772800079674,3.3878459,86.85,86.811,11.51927751]
[1772800079895,3.3878459,86.85,86.813,0.80495193]
[1772800079896,11.51423735,86.849,86.813,0.80495193]
[1772800080289,3.3878459,86.84,86.813,0.80495193]
[1772800080596,0.80993905,86.853,86.813,0.80495193]
[1772800080903,3.3878459,86.85,86.813,0.80495193]
[1772800081086,3.3878459,86.84,86.813,0.80495193]
[1772800081700,3.3878459,86.85,86.813,0.80495193]
[1772800081897,11.51423735,86.849,86.815,0.82702725]
[1772800082496,3.3878459,86.86,86.82,0.14216157]
[1772800082687,14.90069664,86.86,86.823,0.82702725]
[1772800083595,11.5119885,86.866,86.823,0.82702725]
[1772800084303,11.51158641,86.869,86.827,0.82702725]
[1772800084492,11.51158641,86.869,86.833,0.82702725]
[1772800085579,3.3878459,86.86,86.825,0.82702725]
[1772800085782,0.83345736,86.859,86.825,0.82702725]
[1772800086578,4.22130326,86.85,86.825,0.82702725]
[1772800087986,0.83345736,86.839,86.814,0.82702725]
[1772800088492,0.83345736,86.839,86.799,28.80216607]
[1772800088493,0.83345736,86.839,86.816,0.82702725]
[1772800088700,0.83345736,86.848,86.816,0.82702725]
[1772800089786,0.83345736,86.829,86.793,0.82702725]
[1772800089978,3.3878459,86.82,86.793,0.82702725]
[1772800090179,0.83345736,86.832,86.807,0.82702725]
[1772800090379,0.83345736,86.848,86.81,0.82702725]
[1772800090611,32.16999745,86.86,86.813,0.82702725]
[1772800090612,11.5135745,86.854,86.813,0.82702725]
[1772800090911,12.34703186,86.854,86.814,0.82702725]
[1772800092482,0.83345736,86.867,86.82,0.14216157]
[1772800092794,3.3878459,86.86,86.823,0.82702725]
[1772800092991,0.83345736,86.859,86.823,0.82702725]
[1772800095410,0.83345736,86.857,86.823,0.82702725]
[1772800095699,0.83345736,86.849,86.808,0.82702725]
[1772800096004,0.83345736,86.839,86.808,0.82702725]
[1772800098206,0.83345736,86.837,86.81,0.82702725]
[1772800100190,0.83345736,86.837,86.812,0.82702725]
[1772800100609,0.83345736,86.836,86.812,0.82702725]
[1772800102303,0.83345736,86.834,86.806,51.76]
[1772800104114,0.14216157,86.863,86.806,51.76]
[1772800104115,11.51556328,86.839,86.808,0.82702725]
[1772800105413,28.78711289,86.845,86.81,0.82702725]
[1772800106018,29.62057025,86.845,86.81,0.82702725]
[1772800106200,0.83345736,86.844,86.81,0.82702725]
[1772800107612,0.83345736,86.858,86.812,0.82702725]
[1772800107809,0.83345736,86.858,86.814,0.82702725]
[1772800109700,0.83345736,86.856,86.816,0.82702725]
[1772800111618,0.83345736,86.854,86.818,0.82702725]
[1772800112221,13.24398382,86.903,86.821,0.80295117]
[1772800112419,0.85105531,86.959,86.862,3.69383402]
[1772800112608,11.69962751,86.96,86.885,0.28432314]
[1772800112609,0.85105531,86.949,86.885,0.28432314]
[1772800112920,0.85105531,86.909,86.822,17.65991428]
[1772800113102,0.85105531,86.909,86.826,0.42648471]
[1772800113519,0.85105531,86.909,86.831,0.42648471]
[1772800114301,0.85105531,86.907,86.831,0.42648471]
[1772800115623,0.85105531,86.907,86.835,3.69383402]
[1772800115818,0.85105531,86.907,86.836,0.42648471]
[1772800119022,0.85105531,86.907,86.84,3.69383402]
[1772800119216,0.85105531,86.907,86.841,0.42648471]
[1772800120420,0.85105531,86.905,86.841,0.42648471]
[1772800122128,0.85105531,86.903,86.843,0.42648471]
[1772800123609,0.85105531,86.903,86.848,0.42648471]
[1772800124430,0.85105531,86.903,86.85,0.42648471]
[1772800126319,0.85105531,86.903,86.852,0.42648471]
[1772800129019,0.85105531,86.901,86.854,0.42648471]
[1772800132334,11.50747986,86.9,86.855,40.29704679]
[1772800132514,0.85105531,86.899,86.856,0.42648471]
[1772800133138,0.85105531,86.899,86.856,0.28432314]
[1772800133628,0.85105531,86.899,86.855,40.29704679]
[1772800134556,0.85105531,86.897,86.85,0.28432314]
[1772800135132,0.85105531,86.897,86.85,0.42648471]
[1772800136952,0.85105531,86.897,86.855,0.14216157]
[1772800137823,0.85105531,86.896,86.852,0.14216157]
[1772800138029,0.75546923,86.859,86.791,0.72566372]
[1772800138245,3.3878459,86.84,86.791,0.72566372]
[1772800138449,3.3878459,86.86,86.794,0.72566372]
[1772800138756,3.39495566,86.87,86.794,0.72566372]
[1772800138935,11.51158641,86.869,86.801,0.72566372]
[1772800139132,3.39495566,86.86,86.801,0.72566372]
[1772800139346,3.39495566,86.86,86.805,0.72566372]
[1772800139530,3.39495566,86.86,86.81,0.14216157]
[1772800139724,11.51026139,86.879,86.816,0.14216157]
[1772800139933,11.51026139,86.879,86.828,0.14216157]
[1772800140242,0.75546923,86.878,86.835,0.72566372]
[1772800140742,0.75546923,86.869,86.835,0.72566372]
[1772800141126,0.75546923,86.867,86.821,28.79464318]
[1772800141331,0.75546923,86.849,86.822,11.51781806]
[1772800142946,0.75546923,86.849,86.815,12.23063174]
[1772800143934,11.51436993,86.848,86.815,12.23063174]
[1772800144133,0.70636971,86.847,86.815,12.23063174]
[1772800144344,0.70636971,86.847,86.816,0.71188498]
[1772800144651,0.70636971,86.855,86.816,0.71188498]
[1772800148051,11.51256111,86.862,86.82,0.71188498]
[1772800148458,12.21893082,86.862,86.824,0.71188498]
[1772800148954,0.70636971,86.861,86.824,0.71188498]
[1772800151050,0.70636971,86.861,86.826,0.71188498]
[1772800151671,11.51277918,86.86,86.826,0.71188498]
[1772800151832,0.70636971,86.849,86.816,11.51859948]
[1772800152855,0.70636971,86.847,86.816,11.51859948]
[1772800153053,11.51436993,86.848,86.806,103.04216157]
[1772800153054,0.70636971,86.839,86.812,11.51911086]
[1772800154055,0.70636971,86.839,86.803,11.80466229]
[1772800154261,0.70636971,86.839,86.804,0.14216157]
[1772800155249,0.70636971,86.837,86.804,0.85404655]
[1772800155562,0.70636971,86.837,86.804,0.14216157]
[1772800156656,0.70636971,86.837,86.804,0.85404655]
[1772800156860,0.70636971,86.855,86.804,0.85404655]
[1772800157739,0.28432314,86.885,86.806,0.71188498]
[1772800157740,0.70636971,86.849,86.806,0.71188498]
[1772800157938,0.70636971,86.849,86.815,0.71188498]
[1772800158862,0.70636971,86.847,86.816,11.51861408]
[1772800159359,11.51436993,86.848,86.817,0.71188498]
[1772800159864,0.70636971,86.847,86.817,0.71188498]
[1772800160545,0.70636971,86.847,86.819,0.71188498]
[1772800161349,0.70636971,86.839,86.818,11.51834872]
[1772800163467,0.70636971,86.839,86.814,0.14216157]
[1772800164972,0.70636971,86.839,86.814,0.85404655]
[1772800165183,0.70636971,86.859,86.815,0.71188498]
[1772800165472,0.70636971,86.856,86.818,0.71188498]
[1772800165669,0.70636971,86.856,86.822,0.14216157]
[1772800166873,0.70636971,86.856,86.822,0.85404655]
[1772800167374,0.70636971,86.854,86.822,0.85404655]
[1772800168954,0.70636971,86.854,86.821,0.42648471]
[1772800169769,0.70636971,86.854,86.824,0.71188498]
[1772800170071,0.70636971,86.852,86.824,0.71188498]
[1772800170455,4.10132537,86.86,86.824,0.71188498]
[1772800170656,0.70636971,86.859,86.832,0.71188498]
[1772800170862,0.70636971,86.859,86.825,0.14216157]
[1772800170863,0.70636971,86.859,86.835,11.51609374]
[1772800171353,0.70636971,86.859,86.827,0.71188498]
[1772800171581,0.70636971,86.859,86.805,0.78233053]
[1772800172577,0.66351909,86.857,86.81,0.64016896]
[1772800172783,0.66351909,86.849,86.81,0.78233053]
[1772800173283,0.66351909,86.849,86.811,0.14216157]
[1772800173482,0.66351909,86.849,86.812,0.64016896]
[1772800174772,0.66351909,86.847,86.813,40.9567114]
[1772800174960,0.66351909,86.847,86.814,0.64016896]
[1772800176290,0.66351909,86.845,86.816,0.64016896]
[1772800177778,0.66351909,86.839,86.802,0.64016896]
[1772800177981,0.66351909,86.839,86.797,28.8026483]
[1772800178168,0.66351909,86.839,86.797,29.44281726]
[1772800178496,0.66351909,86.837,86.798,0.64016896]
[1772800180394,3.39495566,86.84,86.799,11.52087005]
[1772800180395,0.66351909,86.835,86.799,11.52087005]
[1772800180696,0.66351909,86.835,86.799,12.16103901]
[1772800181402,0.66351909,86.835,86.8,0.64016896]
[1772800182175,0.66351909,86.833,86.801,11.5206046]
[1772800182600,0.66351909,86.833,86.802,0.64016896]
[1772800183100,11.51569036,86.839,86.803,0.64016896]
[1772800184591,0.66351909,86.839,86.805,0.64016896]
[1772800186687,0.66351909,86.837,86.807,0.64016896]
[1772800188004,0.66351909,86.844,86.807,0.64016896]
[1772800188600,0.66351909,86.844,86.809,0.64016896]
[1772800188828,0.66351909,86.844,86.812,0.64016896]
[1772800190213,0.66351909,86.842,86.812,0.64016896]
[1772800190386,0.66351909,86.842,86.81,11.5194102]
[1772800191098,0.66351909,86.839,86.81,11.5194102]
[1772800193287,0.66351909,86.837,86.81,11.5194102]
[1772800194202,11.51596112,86.836,86.81,11.5194102]
[1772800194410,0.66351909,86.835,86.81,11.5194102]
[1772800196513,0.62515471,86.833,86.806,0.64016896]
[1772800196813,0.62515471,86.819,86.767,0.57349257]
[1772800197015,0.62515471,86.799,86.767,0.57349257]
[1772800197915,0.62515471,86.789,86.777,0.4525037]
[1772800198517,3.69383402,86.831,86.777,0.4525037]
[1772800198518,11.5195429,86.809,86.778,0.57349257]
[1772800198714,11.5195429,86.809,86.78,0.57349257]
[1772800200605,11.51834872,86.818,86.78,0.57349257]
[1772800200805,0.55947207,86.817,86.78,0.57349257]
[1772800201309,0.55947207,86.817,86.782,0.57349257]
[1772800201511,11.51834872,86.818,86.783,0.60880231]
[1772800201690,0.55367549,86.833,86.785,0.60880231]
[1772800201895,0.55367549,86.84,86.795,0.60880231]
[1772800202216,0.55367549,86.84,86.803,0.60880231]
[1772800202217,3.95205755,86.84,86.803,0.60880231]
[1772800202423,0.55082705,86.839,86.803,0.60880231]
[1772800202720,0.55082705,86.839,86.802,0.14216157]
[1772800202721,11.51569589,86.838,86.805,0.60880231]
[1772800203509,12.06370721,86.838,86.805,0.60880231]
[1772800204320,12.06370721,86.838,86.807,0.60880231]
[1772800204996,11.51569589,86.838,86.807,0.60880231]
[1772800206332,3.39838206,86.86,86.81,0.60880231]
[1772800206628,11.51379972,86.853,86.822,0.60880231]
[1772800207001,11.51312,86.858,86.822,0.60880231]
[1772800207830,11.5131954,86.857,86.822,0.60880231]
[1772800209033,11.5131954,86.857,86.824,0.60880231]
[1772800211416,0.5266191,86.873,86.83,0.60880231]
[1772800211625,0.5266191,86.873,86.832,0.60880231]
[1772800211926,0.5266191,86.869,86.832,0.60880231]
[1772800213231,0.52157289,86.857,86.828,0.60880231]
[1772800216035,0.52157289,86.857,86.83,0.60880231]
[1772800216616,3.39838206,86.87,86.83,0.60880231]
[1772800216617,0.51421886,86.877,86.835,0.60880231]
[1772800216814,11.51009779,86.881,86.839,0.60880231]
[1772800217039,0.14216157,86.914,86.833,0.28432314]
[1772800217040,0.51182361,86.901,86.847,0.60880231]
[1772800217217,0.51182361,86.889,86.853,0.60880231]
[1772800217420,0.51182361,86.879,86.84,0.60880231]
[1772800217621,0.51182361,86.879,86.842,0.60880231]
[1772800217820,0.51182361,86.877,86.844,0.60880231]
[1772800219733,11.50983053,86.883,86.844,0.60880231]
[1772800220038,11.50924663,86.887,86.852,0.60880231]
[1772800220419,0.50480167,86.886,86.852,0.60880231]
[1772800222237,0.50025377,86.884,86.854,0.60880231]
[1772800224939,0.49580975,86.882,86.854,0.60880231]
[1772800225730,0.49362595,86.879,86.854,0.60880231]
[1772800227046,11.51039388,86.878,86.854,0.60880231]
[1772800227230,11.99972718,86.878,86.854,0.60880231]
[1772800227544,0.4893333,86.877,86.854,0.60880231]
[1772800229145,28.77432869,86.883,86.854,0.60880231]
[1772800229146,0.4851387,86.875,86.854,0.60880231]
[1772800229333,0.4851387,86.875,86.848,0.60880231]
[1772800230728,11.51065887,86.876,86.848,0.60880231]
[1772800231041,0.48307747,86.875,86.848,0.60880231]
[1772800231828,11.98994961,86.874,86.85,0.5864519]
[1772800232034,11.51092386,86.874,86.85,0.5864519]
[1772800232235,0.47703473,86.873,86.85,0.5864519]
[1772800233548,28.77432869,86.883,86.834,0.28432314]
[1772800233549,11.51026139,86.879,86.852,0.5864519]
[1772800235032,11.50928703,86.887,86.853,0.5864519]
[1772800235649,3.39838206,86.92,86.856,0.5864519]
[1772800235833,3.39838206,86.92,86.855,0.28432314]
[1772800235834,0.47119783,86.919,86.862,0.5864519]
[1772800236032,0.56272865,86.889,86.849,11.51413487]
[1772800236347,28.76398228,86.915,86.817,0.42648471]
[1772800236348,0.56272865,86.869,86.817,0.42648471]
[1772800236727,0.56272865,86.869,86.817,0.28432314]
[1772800237030,0.56272865,86.869,86.817,0.42648471]
[1772800237226,0.56272865,86.869,86.817,0.28432314]
[1772800237454,0.56272865,86.869,86.817,0.42648471]
[1772800237836,0.56272865,86.869,86.813,40.31654244]
[1772800237837,11.51171892,86.868,86.822,0.28432314]
[1772800238146,12.07444757,86.868,86.826,0.14216157]
[1772800238350,12.07444757,86.868,86.833,0.5864519]
[1772800238954,12.07444757,86.868,86.835,0.5864519]
[1772800239347,0.56272865,86.867,86.835,0.5864519]
[1772800241560,40.2919439,86.866,86.835,0.5864519]
[1772800241751,0.56272865,86.839,86.81,1e-08]
[1772800241949,3.39838206,86.82,86.81,1e-08]
[1772800242251,0.56272865,86.828,86.81,1e-08]
[1772800243433,3.39838206,86.82,86.802,0.5864519]
[1772800246057,11.51821605,86.819,86.802,0.5864519]
[1772800247263,3.39838206,86.82,86.802,0.5864519]
[1772800247849,14.91652687,86.82,86.802,0.5864519]
[1772800251062,0.56272865,86.819,86.796,0.5864519]
[1772800251262,3.39838206,86.81,86.796,0.5864519]
[1772800251654,0.56272865,86.819,86.796,0.5864519]
[1772800255868,11.51834872,86.818,86.796,0.5864519]
[1772800256392,3.39838206,86.81,86.796,0.5864519]
[1772800256571,12.07144933,86.818,86.796,0.5864519]
[1772800256768,0.55310061,86.809,86.783,0.5259258]
[1772800257278,46.05696073,86.849,86.778,0.14216157]
[1772800257279,11.51688951,86.829,86.785,0.5259258]
[1772800257572,0.55310061,86.828,86.793,0.5259258]
[1772800257868,11.51596112,86.836,86.802,0.5259258]
[1772800258169,0.55310061,86.829,86.802,0.5259258]
[1772800259969,11.51702215,86.828,86.804,0.5259258]
[1772800261868,12.02562002,86.828,86.804,0.5259258]
[1772800262165,0.50859787,86.827,86.804,0.5259258]
[1772800262353,9.37176302,86.828,86.804,0.5259258]
[1772800264551,9.37176302,86.828,86.797,11.5210766]
[1772800264552,0.26834307,86.819,86.797,0.50538174]
[1772800264868,0.26834307,86.809,86.78,0.50538174]
[1772800265875,0.26834307,86.809,86.781,0.50538174]
[1772800266259,0.50859787,86.789,86.756,11.52650472]
[1772800266477,0.50859787,86.787,86.77,1e-08]
[1772800266680,0.50859787,86.779,86.734,0.42648471]
[1772800266866,0.50859787,86.779,86.744,0.14216157]
[1772800267059,0.50859787,86.779,86.746,0.42648471]
[1772800267260,0.50859787,86.779,86.745,11.52794724]
[1772800267772,0.50859787,86.779,86.741,11.5285024]
[1772800267973,0.50859787,86.769,86.712,102.9]
[1772800268180,3.39648513,86.77,86.731,11.5299028]
[1772800268181,0.50859787,86.763,86.731,11.5299028]
[1772800268367,11.52578317,86.762,86.734,11.529504]
[1772800268576,11.52578317,86.762,86.735,0.50538174]
[1772800268779,40.34024111,86.762,86.735,0.50538174]
[1772800269076,0.50859787,86.761,86.735,0.50538174]
[1772800269381,11.52432208,86.773,86.735,0.50538174]
[1772800269577,11.52432208,86.773,86.744,0.14216157]
[1772800269880,11.52432208,86.773,86.753,0.50538174]
[1772800270061,12.03291995,86.773,86.753,0.50538174]
[1772800270263,0.50859787,86.772,86.746,0.50538174]
[1772800270472,0.50859787,86.769,86.734,0.50538174]
[1772800271580,0.50859787,86.767,86.734,0.50538174]
[1772800272355,0.50859787,86.759,86.734,0.50538174]
[1772800272883,0.50859787,86.759,86.718,0.42648471]
[1772800273378,0.50859787,86.759,86.721,0.42648471]
[1772800273961,0.50859787,86.757,86.72,0.1]
[1772800274680,0.50859787,86.757,86.724,0.50538174]
[1772800275785,0.50859787,86.755,86.72,0.1]
[1772800275987,0.50859787,86.749,86.72,0.1]
[1772800276284,0.50859787,86.739,86.71,0.1]